Cogmind - Beta 16 @@@ ROGUE MODE // 2026.01.01 @ 19:20:13 Player: JuustuToug Result: Escaped! Performance ------------- Evolutions (9) 4500 Regions Visited (29) 5800 Robots Destroyed (354) 1770 Value Destroyed (16812) 16812 Prototype IDs (60) 1200 Alien Tech Used (1) 200 Bonus (23197) 23197 TOTAL SCORE: 53479 Bonus ------- High Alert Combat Kills 5618 Follower Combat Kills 5433 Met Data Miner 300 Met Imprinter 300 Met Warlord at Base 500 MAIN.C Attacked Warlord 500 Warlord Defense Kills 140 Built Enhanced Grunts 300 A7 Reached Mainframe 300 Met R17 at Cetus 500 Met Warlord at Research 2000 Hacked God Mode 5000 Scanned by Researcher 500 Win 3000 Friendly Fire -1194 Cogmind --------- Core Integrity 1275/1600 Matter 290/300 Energy 46/100 System Corruption 13% Temperature Cool (0) Movement Core (50) Location To Epsilon Eridani Parts ------- > --- POWER (3) -------- (None) > --- PROPULSION (6) --- Enhanced Armored Medium Treads Centrium Heavy Treads > --- UTILITY (13) ----- Advanced Heat Sink Advanced Visual Processing Unit Advanced Signal Interpreter Experimental Targeting Computer Advanced Target Analyzer Advanced Target Analyzer Improved Transmission Jammer Graphene Brace > --- WEAPON (4) ------- (None) > --- INVENTORY (5) ---- Light Quantum Reactor Advanced Sensor Array Long-range Tractor Beam Hacking Drone Bay (1/1) Phasing Sabre Peak State ------------ > --- POWER ------------ Particle Reactor Particle Reactor Quantum Reactor > --- PROPULSION ------- Experimental Biometal Heavy Treads Experimental Biometal Heavy Treads Enhanced Armored Heavy Treads > --- UTILITY ---------- Improved Cooling System High-capacity Storage Unit Advanced Visual Processing Unit Advanced Sensor Array Advanced Signal Interpreter Experimental Targeting Computer Experimental Core Analyzer Improved Transmission Jammer Advanced Phase Shifter Centrium Light Armor Plating Graphene Brace Advanced Thermal Shield Experimental Hardlight Generator > --- WEAPON ----------- KE Penetrator Improved KE Penetrator Improved KE Penetrator Railgun > --- INVENTORY -------- Light Quantum Reactor Light Quantum Reactor Enhanced Armored Medium Treads Centrium Heavy Treads Improved Sensor Array Improved Transmission Jammer Long-range Tractor Beam Hacking Drone Bay KE Penetrator KE Penetrator KE Penetrator KE Penetrator KE Penetrator KE Penetrator Perforator Micro-nuke Launcher Advanced Remote Datajack Phasing Sabre [Rating: 209] Favorites ----------- Power Quantum Reactor Engine Deuterium Engine Power Core Light Fission Core Reactor Quantum Reactor Propulsion Armored Treads Treads Armored Treads Leg Enhanced Biometal Leg Utility High-capacity Storage Unit Device Improved Sensor Array Storage High-capacity Storage Unit Processor Improved Signal Interpreter Hackware System Shield Protection Centrium Medium Armor Plating Weapon Advanced Beam Cannon Energy Gun Dispersion Rifle Energy Cannon Advanced Beam Cannon Ballistic Gun Gauss Rifle Ballistic Cannon Antimatter Cannon Launcher Improved Grenade Launcher Special Weapon Improved Remote Datajack Impact Weapon Great Maul Slashing Weapon Phasing Sabre Piercing Weapon Plasma Lance Build | -11 -10 -10 -10 -9 -8 -7 -7 -7 -7 -6 -6 -6 -6 -6 -5 -5 -5 -5 -5 -5 -4 -4 -4 -4 -3 -3 -2 -2 -1 ------- Run | Yrd Mat Min Exi Min Mat Fac Low Low Zio Pro Fac Low Low Dat Pro Fac Ext Cet Arc Hub Fac Upp Upp War Pro Res Res Tes Acc Slots Evolved 18 | . . . . . 4 2 . . . . 2 . . . . 2 . . . . 2 . . . . 2 2 . 2 Power 2 | . . . . . . . . . . . 1 . . . . . . . . . . . . . . . . . 1 Propulsion 3 | . . . . . 1 1 . . . . . . . . . . . . . . . . . . . . . . 1 Utility 11 | . . . . . 1 1 . . . . 1 . . . . 2 . . . . 2 . . . . 2 2 . . Weapon 2 | . . . . . 2 . . . . . . . . . . . . . . . . . . . . . . . . Parts Attached 228 | 8 6 . . 5 26 12 3 1 3 2 11 . 4 . 22 10 15 12 . 1 5 4 1 11 2 10 6 27 21 Power 29 | 1 1 . . 2 3 . 1 . . . 3 . . . 3 1 1 3 . . . . . 1 . . 1 2 6 Engine 9 | 1 1 . . 2 2 . 1 . . . 2 . . . . . . . . . . . . . . . . . . Core 5 | . . . . . 1 . . . . . 1 . . . 1 1 1 . . . . . . . . . . . . Reactor 15 | . . . . . . . . . . . . . . . 2 . . 3 . . . . . 1 . . 1 2 6 Propulsion 42 | 2 1 . . 1 6 4 . 1 . . 3 . 2 . 6 1 5 2 . . . . 1 1 . . 2 4 . Treads 40 | 2 1 . . 1 6 4 . 1 . . 3 . 2 . 5 1 5 2 . . . . 1 . . . 2 4 . Leg 2 | . . . . . . . . . . . . . . . 1 . . . . . . . . 1 . . . . . Wheel . | . . . . . . . . . . . . . . . . . . . . . . . . . . . . . . Hover . | . . . . . . . . . . . . . . . . . . . . . . . . . . . . . . Flight . | . . . . . . . . . . . . . . . . . . . . . . . . . . . . . . Utility 68 | 3 1 . . 1 4 3 1 . 1 . 2 . . . 2 6 4 4 . . 2 1 . 5 1 7 2 11 7 Device 41 | 2 . . . 1 3 1 1 . 1 . 1 . . . 2 3 1 2 . . 1 1 . 2 1 6 1 8 3 Storage 5 | 1 1 . . . . 1 . . . . 1 . . . . . . . . . . . . . . . . . 1 Processor 13 | . . . . . 1 1 . . . . . . . . . . 1 . . . 1 . . 3 . 1 1 1 3 Hackware 1 | . . . . . . . . . . . . . . . . 1 . . . . . . . . . . . . . Protection 8 | . . . . . . . . . . . . . . . . 2 2 2 . . . . . . . . . 2 . Artifact . | . . . . . . . . . . . . . . . . . . . . . . . . . . . . . . Weapon 89 | 2 3 . . 1 13 5 1 . 2 2 3 . 2 . 11 2 5 3 . 1 3 3 . 4 1 3 1 10 8 Energy Gun 11 | 1 . . . . 1 . . . . . . . . . 4 1 . 1 . . 1 . . . . . . 2 . Energy Cannon 15 | . 1 . . . 6 2 1 . . . 1 . 1 . 1 . . . . . . . . . . . . 2 . Ballistic Gun 47 | 1 . . . 1 6 1 . . 2 1 1 . . . 5 . 4 2 . . 2 1 . 4 1 2 1 5 7 Ballistic Cannon 3 | . . . . . . . . . . . 1 . . . . 1 . . . . . . . . . . . 1 . Launcher 7 | . 1 . . . . 2 . . . . . . 1 . . . . . . . . 2 . . . . . . 1 Special Weapon 2 | . . . . . . . . . . . . . . . 1 . 1 . . . . . . . . . . . . Impact Weapon 1 | . . . . . . . . . . 1 . . . . . . . . . . . . . . . . . . . Slashing Weapon 2 | . 1 . . . . . . . . . . . . . . . . . . 1 . . . . . . . . . Piercing Weapon 1 | . . . . . . . . . . . . . . . . . . . . . . . . . . 1 . . . Special Melee Weapon . | . . . . . . . . . . . . . . . . . . . . . . . . . . . . . . Unidentified Prototypes 36 | . . . . . 2 1 . . 1 . 1 . 1 . . . 1 4 . . 1 . . 7 . 3 2 12 . Corrupted Parts 3 | . . . . . . . . . . . . . 1 . 2 . . . . . . . . . . . . . . System Corruption 7 | . . . . . . . . . . . . . 4 . 3 . . . . . . . . . . . . . . Parts Lost 45 | . 2 . . 2 2 1 . . . . . . 1 . 2 1 1 . . . . . . 1 . . . 7 25 Power 6 | . 1 . . . . . . . . . . . . . 1 . . . . . . . . . . . . . 4 Propulsion 6 | . 1 . . 1 1 . . . . . . . . . . . . . . . . . . . . . . . 3 Utility 17 | . . . . 1 . . . . . . . . . . . 1 1 . . . . . . 1 . . . 5 8 Weapon 16 | . . . . . 1 1 . . . . . . 1 . 1 . . . . . . . . . . . . 2 10 Highest Loss Streak 8 | . 1 . . 2 2 1 . . . . . . 1 . 1 1 1 . . . . . . 1 . . . 3 8 To Critical Strikes . | . . . . . . . . . . . . . . . . . . . . . . . . . . . . . . Average Backups 17 | 1 7 15 15 13 14 17 19 19 19 19 18 19 18 19 18 18 18 19 19 19 18 18 19 19 19 19 19 16 16 Power 1 | . 1 2 2 1 1 1 1 1 1 1 . 1 1 1 1 1 1 1 1 1 1 1 1 1 1 1 2 1 1 Propulsion 3 | . 1 3 3 2 2 3 5 5 5 5 5 5 4 4 3 3 2 2 2 2 2 2 2 2 2 2 1 2 1 Utility 5 | . 1 3 3 2 3 5 6 6 6 6 6 6 6 8 7 6 5 5 5 5 4 5 6 5 5 4 4 3 3 Weapon 7 | . 3 7 7 7 7 6 7 7 7 7 6 7 6 6 6 7 9 10 10 10 9 8 9 9 10 10 10 8 7 Tool/Special . | . . . . . . . . . . . . . . . . . . . . . . . . . . . . . . Unused Backups 62 | . 2 . . 2 8 2 2 2 1 . . 1 2 . 3 2 7 7 . . 4 2 . . 1 2 3 4 5 Power 12 | . . . . 1 2 . . . . . . . . . 1 . 1 1 . . 2 1 . . . . 1 1 1 Propulsion 4 | . . . . . 1 . . . . . . . . . . . 2 . . . . . . . . . 1 . . Utility 20 | . 1 . . . 1 2 1 1 1 . . 1 2 . 2 1 1 3 . . 1 1 . . . . . . 1 Weapon 25 | . 1 . . 1 4 . 1 1 . . . . . . . 1 3 3 . . 1 . . . 1 2 1 3 2 Tool/Special 1 | . . . . . . . . . . . . . . . . . . . . . . . . . . . . . 1 Average Slot Usage (%) 94 | . 99 100 100 99 97 99 100 100 100 100 99 100 99 78 99 99 99 93 88 88 89 90 90 88 85 85 86 83 82 Engine 3 | . 14 14 14 14 6 . 4 7 7 7 11 6 6 6 1 . . . . . . . . . . . . . . Core 1 | . . . . . 2 7 2 . . . 1 6 6 6 6 5 5 4 . . . . . . . . . . . Reactor 3 | . . . . . . . . . . . . . . . 4 5 5 6 11 11 10 10 10 8 5 4 3 5 10 Treads 22 | . 27 28 28 27 27 29 30 30 30 30 26 26 26 31 31 27 27 21 16 16 15 15 15 14 15 13 12 12 10 Device 15 | . 14 14 14 13 14 7 7 7 7 7 12 13 12 12 12 15 15 16 16 16 23 19 20 18 20 22 25 23 23 Storage 6 | . 14 14 14 14 9 7 7 7 7 7 6 6 6 6 6 5 5 5 5 5 5 5 5 5 5 4 4 4 2 Processor 12 | . . . . . 1 14 15 15 15 15 13 13 12 12 12 11 11 11 11 11 11 15 15 15 15 13 15 16 16 Protection 2 | . . . . . . . . . . . . . . . . 4 5 5 5 5 5 5 5 5 5 8 7 4 1 Energy Gun 1 | . 11 . . . . . . . . . . . . . 2 4 5 5 5 5 1 . . . . . . . . Energy Cannon 9 | . 2 14 14 14 13 16 23 23 23 23 16 13 12 1 9 5 5 5 5 5 3 . . . . . . . . Ballistic Gun 13 | . 13 14 14 13 22 13 6 6 7 6 9 13 12 1 11 11 10 11 11 10 13 19 19 19 19 17 15 15 13 Peak Build Rating 209 | 9 8 8 8 11 35 44 44 49 55 54 63 58 60 56 74 86 91 123 124 123 140 139 139 155 157 178 196 200 209 Average Rating 90 | 5 7 8 8 10 27 39 43 46 47 47 57 57 56 43 63 81 88 109 123 122 132 135 138 140 155 171 192 189 193 On Entrance 80 | . 7 8 8 8 11 35 43 44 49 47 49 57 57 56 56 73 82 91 123 123 123 134 136 139 155 155 172 196 182 Avg Prop Armor Cover (%) 15 | . . . . . . 7 . . . . . . . . . . . . . . . . . . . . . 5 36 Naked Turns . | . . . . . . . . . . . . . . . . . . . . . . . . . . . . . . Heaviest Build 180 | 13 31 30 30 32 49 70 75 75 74 77 85 75 80 75 97 113 121 127 125 124 131 125 119 119 125 130 133 140 180 Greatest Support 250 | 40 40 40 40 40 60 80 80 90 90 90 90 90 110 110 121 124 131 183 183 183 183 183 190 190 190 190 200 205 250 Greatest Overweight (x) 1 | . . . . . . 1 . . . . . . . . . . . . . . . . . . . . . . . Average Overweight (x) . | . . . . . . . . . . . . . . . . . . . . . . . . . . . . . . Largest Inventory Capacity 20 | 8 15 15 15 15 15 20 20 20 20 20 20 20 20 20 20 20 20 20 20 20 20 20 20 20 20 20 20 20 20 Average Capacity 19 | 6 10 15 15 15 15 18 20 20 20 20 20 20 20 20 20 20 20 20 20 20 20 20 20 20 20 20 20 20 19 Most Carried 20 | 3 15 15 15 15 15 20 20 20 20 20 20 20 20 20 20 20 20 20 20 20 20 20 20 20 20 20 20 20 20 Average Carried 18 | 1 7 15 15 13 14 17 19 20 19 20 19 19 19 20 19 19 19 20 19 20 19 19 20 19 19 19 19 19 18 Final Capacity 20 | 8 15 15 15 15 15 20 20 20 20 20 20 20 20 20 20 20 20 20 20 20 20 20 20 20 20 20 20 20 5 Final Carried 20 | 3 15 15 15 13 15 20 20 20 20 20 20 20 20 20 20 20 20 20 20 20 20 20 20 20 20 20 20 20 5 Class Distribution -------------------- 37% | Scavenger-Tank 29% | Skirmisher 9% | Scavenger-Gunner 9% | Mutant 5% | Scavenger-Skirmisher 4% | Commander-Tank 3% | Gunner Dominant Class ---------------- Mutant | -10/Materials Mutant | -10/Mines Mutant | -10/Exiles Mutant | -9/Mines Scavenger-Gunner | -8/Materials Skirmisher | -7/Factory Skirmisher | -7/Lower Caves Skirmisher | -7/Lower Caves Skirmisher | -7/Zion Skirmisher | -6/Proximity Caves Skirmisher | -6/Factory Skirmisher | -6/Lower Caves Scavenger-Skirmisher | -6/Lower Caves Scavenger-Mutant | -6/Data Miner Scavenger-Skirmisher | -5/Proximity Caves Scavenger-Tank | -5/Factory Scavenger-Tank | -5/Extension Commander-Tank | -5/Cetus Commander-Tank | -5/Archives Commander-Tank | -5/Hub_04(d) Scavenger-Tank | -4/Factory Scavenger-Tank | -4/Upper Caves Scavenger-Tank | -4/Upper Caves Scavenger-Tank | -4/Warlord Scavenger-Gunner | -3/Proximity Caves Scavenger-Tank | -3/Research Scavenger-Tank | -2/Research Scavenger-Tank | -2/Testing Scavenger-Tank | -1/Access Resources | -11 -10 -10 -10 -9 -8 -7 -7 -7 -7 -6 -6 -6 -6 -6 -5 -5 -5 -5 -5 -5 -4 -4 -4 -4 -3 -3 -2 -2 -1 ----------- Run | Yrd Mat Min Exi Min Mat Fac Low Low Zio Pro Fac Low Low Dat Pro Fac Ext Cet Arc Hub Fac Upp Upp War Pro Res Res Tes Acc Matter Collected 13235 | 286 254 5 . 125 691 518 312 257 84 179 431 92 242 . 935 235 740 293 46 . 372 241 86 462 222 380 731 2468 2548 Remotely 2511 | . . . . . . . . . . . . . . . . . 52 . . . . . . . . 182 591 348 1338 Salvage Created 18483 | 112 519 180 . 168 1109 786 136 308 . 95 568 83 267 . 1062 456 1014 247 35 45 568 450 34 128 483 419 747 3970 4494 Parts 898 | 7 50 8 . 15 56 45 5 18 . 4 28 12 8 . 34 27 36 12 2 4 27 17 5 8 19 27 17 209 198 Haulers Intercepted 9 | . 2 . . . 4 2 . . . . . . . . . . . . . . . . . . 1 . . . . Recyclers Shooed 10 | . . . . 1 2 . . . . . 1 . . . 1 1 . . . . 1 . . . . . . 1 2 Parts Field Recycled . | . . . . . . . . . . . . . . . . . . . . . . . . . . . . . . Retrieved Matter . | . . . . . . . . . . . . . . . . . . . . . . . . . . . . . . Parts Self-Destructed 144 | . . . . . . . 5 14 . 11 . 8 7 . 56 . . . . . . 11 4 . 28 . . . . Prevented 40 | . . . . . . . . 1 . . . . 1 . 16 . . . . . . 6 . . 16 . . . . Parts Restored . | . . . . . . . . . . . . . . . . . . . . . . . . . . . . . . Kills | -11 -10 -10 -10 -9 -8 -7 -7 -7 -7 -6 -6 -6 -6 -6 -5 -5 -5 -5 -5 -5 -4 -4 -4 -4 -3 -3 -2 -2 -1 ------- Run | Yrd Mat Min Exi Min Mat Fac Low Low Zio Pro Fac Low Low Dat Pro Fac Ext Cet Arc Hub Fac Upp Upp War Pro Res Res Tes Acc Combat Hostiles Destroyed 262 | . 16 2 . 7 14 12 8 9 . 4 8 4 6 . 11 4 8 2 . 1 4 9 4 1 4 8 10 45 61 Guns 154 | . 5 . . 1 6 6 . . . . . . 1 . 8 3 6 1 . 1 4 2 . 1 2 8 10 45 44 Cannons 39 | . . 2 . 2 5 4 2 3 . 1 4 . 3 . 3 . 2 . . . . . . . . . . . 8 AOE 60 | . 11 . . 4 3 2 6 5 . 3 3 4 1 . . . . . . . . 5 4 . . . . . 9 Classes Destroyed 24 | 2 5 . . . 3 1 . 2 . 1 1 . . . . . . . . . . . . . 1 . 3 2 3 Worker 18 | . 3 . . . 1 2 . . . . 3 . . . . 1 1 . . 1 . . . . . . . . 6 Builder 9 | . . . . . . . . . . . . . . . . . . . . . . . . . . . . 5 4 Tunneler 7 | 2 2 1 . 1 . 1 . . . . . . . . . . . . . . . . . . . . . . . Hauler 9 | . 2 . . . 4 2 . . . . . . . . . . . . . . . . . . 1 . . . . Recycler 20 | 1 . 1 . 1 2 2 . . . . 1 . . . 2 1 3 . . . 2 . . . . . . 1 3 Mechanic 4 | . . . . . 1 . . . . . . . . . . . . . . . . . . 1 . . . 2 . Operator 4 | . . . . . 1 . . . . . . . . . . . . . 1 . . . . . . . . 1 1 Watcher 13 | . 2 . . . 1 . . . . . . . . . 1 1 1 1 . . 1 . . . . . 1 1 3 Swarmer 79 | . 9 . . 7 4 4 6 4 . 2 4 4 . . 1 . . . . 1 . 4 4 . . 5 . . 20 Saboteur 1 | . . . . . . . . . . . . . . . . . . . . . . . . . . . . . 1 Grunt 59 | . 7 2 . . 7 3 2 3 . 1 . . 3 . . . 2 . . . . 4 . . 4 . 1 10 10 Brawler 5 | . . . . . . . . . . . . . 1 . . . . . . . . . . . . . . 3 1 Duelist 6 | . . . . . . . . . . 1 . . . . 1 . . . . . . . . . . . . 2 2 Researcher 2 | . . . . . . . . . . . . . . . . . . . . . . . . . . . . 2 . Sentry 30 | . . . . . 5 2 . . . . 2 . 1 . 6 1 4 . . . 2 1 . . . 1 . 3 2 Demolisher 1 | . . . . . . . . . . . . . . . . . . . . . . . . . . . 1 . . Hunter 29 | . . . . . . . . 1 . . . . . . . . 1 . . . . . . . . 2 . 9 16 Programmer 38 | . . . . . . 3 . . . . 2 . 1 . 1 3 . . . . 2 . . 1 . . . 18 7 Heavy 1 | . . . . . . . . . . . . . . . . . . . . . . . . . . . . . 1 Q-Series 1 | . . . . . . . . . . . . . . . . . . . . . . . . . . . . . 1 Behemoth 2 | . . . . . . . . 1 . . . . . . . . 1 . . . . . . . . . . . . Cetus Guard 2 | . . . . . . . . . . . . . . . . . . 2 . . . . . . . . . . . Decomposer 3 | . . . . . . . . 2 . . . 1 . . . . . . . . . . . . . . . . . Samaritan 1 | . . . . . . . . . . . . . . . . . . . . . . . . . 1 . . . . Wasp 1 | . . . . . . . . . . . . . . . . . . . . . . . . . . . 1 . . Thug 2 | . . . . . 1 . . . . . . . . . 1 . . . . . . . . . . . . . . Savage 3 | . . . . . . . . . . . 2 . . . . . . 1 . . . . . . . . . . . Butcher 1 | . . . . . . . . . . . . . . . 1 . . . . . . . . . . . . . . Martyr 2 | . . . . . . . . . . . . . . . . . . . . . . . . . . . 2 . . Guerrilla 2 | . . . . . . . . . . . . . . . . . . . . . . . . . . . 2 . . Knight 1 | . . . . . . . . . . . . . . . . . . . . . . . . . . . 1 . . Troll 2 | . . . . . . . . . . . . . . . . . . . . . . . . . . . 2 . . Best Kill Streak 18 | 3 6 2 . 4 4 7 3 3 . 2 4 4 4 . 3 5 6 3 1 2 2 4 4 1 3 6 7 5 18 Combat Bots Only 15 | . 6 2 . 4 2 4 3 3 . 2 4 4 4 . 2 3 3 2 . 1 2 4 4 1 2 6 7 5 15 Max Kills in Single Turn 6 | 1 4 1 . 4 2 2 2 1 . 2 3 4 1 . 1 2 1 2 1 2 1 4 2 1 2 2 1 2 6 Gunslinging 1 | . . . . . . . . . . . . . . . . . . . . . . . . . . 1 . 1 1 Exploded 6 | . 3 . . 4 2 2 2 1 . 2 3 4 1 . . . . . . . . 4 2 . . . . . 6 Melee . | . . . . . . . . . . . . . . . . . . . . . . . . . . . . . . Uniques/NPCs Destroyed 1 | . . . . . . . . . . . . . . . . . . . . . . . . . . . 1 . . Warlord (-2/Research) Combat | -11 -10 -10 -10 -9 -8 -7 -7 -7 -7 -6 -6 -6 -6 -6 -5 -5 -5 -5 -5 -5 -4 -4 -4 -4 -3 -3 -2 -2 -1 -------- Run | Yrd Mat Min Exi Min Mat Fac Low Low Zio Pro Fac Low Low Dat Pro Fac Ext Cet Arc Hub Fac Upp Upp War Pro Res Res Tes Acc Hostile Shots Fired 1549 | . 68 5 . 46 56 79 16 28 . 26 72 5 26 . 49 16 40 13 2 1 18 16 5 4 7 32 82 332 505 Missed 469 | . 12 . . 12 16 27 6 11 . 7 26 2 11 . 14 2 11 2 1 . 6 9 2 1 4 13 16 114 144 Hits 1080 | . 56 5 . 34 40 52 10 17 . 19 46 3 15 . 35 14 29 11 1 1 12 7 3 3 3 19 66 218 361 Melee 27 | . . . . . . . . . . . . . . . 2 . . . . . . . . . . . 8 11 6 Projectile 1053 | . 56 5 . 34 40 52 10 17 . 19 46 3 15 . 33 14 29 11 1 1 12 7 3 3 3 19 58 207 355 AOE 63 | . . . . . . . . . . . . . . . . 1 . . . . . . . . . . 2 . 60 Critical Strikes 44 | . . 1 . . 2 2 . 1 . . . . . . 1 1 4 3 . . . . . . . . 5 11 13 Actively Blocked 29 | . . . . . . . . . . . . . . . . . . . . . . . . . . . 5 11 13 Part Disruptions 5 | . . . . . . . . . . . . . 1 . . . . . . . . . . . . . . 1 3 Damage Taken 18821 | . 678 72 . 276 743 815 208 329 . 317 595 71 330 . 872 310 447 217 24 6 250 119 48 137 38 299 1326 3795 6499 Core 1126 | . 65 . . 49 56 136 32 25 . . 22 . 8 . 56 43 27 24 . . . 13 . 17 . 17 35 176 325 Absorbed by Shields 3687 | . . . . . . . . . . . . . . . . 60 274 83 6 6 18 . . 113 18 133 156 1340 1480 Reduced by Siege Mode 764 | . . . . . . . . . . . . . . . . . . . . . . . . . . . 23 114 627 Ignored by Resistances 627 | . . . . . . . . . . . . . . . . . . . . . . . . . . . . . 627 Regen/Repaired (Parts) 240 | . 42 . . . . 78 . . . . . . . . . . . . . . . . . 60 . . 60 . . Core Remaining (%) 85 | 100 . . . 54 89 . . . . 72 . . . . 89 . . . . 90 . . . . 97 98 . 85 79 Volleys Fired 662 | 6 51 5 . 18 46 27 14 40 1 6 24 2 10 . 36 10 33 10 4 1 14 10 3 21 10 17 31 107 105 Largest 4 | 2 2 2 . 2 4 4 4 4 4 4 4 4 4 . 4 4 4 4 4 4 4 4 1 4 4 4 4 4 4 Hottest 248 | 60 80 80 . 83 248 236 236 226 226 221 226 192 197 . 199 239 244 246 246 246 246 138 39 141 149 149 147 144 166 Shots Fired 2068 | 12 87 10 . 35 172 103 26 91 4 9 64 6 26 . 130 39 93 37 16 4 56 22 3 42 32 38 115 397 399 Gun 1568 | 12 75 5 . 17 105 46 4 10 1 1 25 3 8 . 74 29 60 27 12 3 47 16 . 29 29 38 112 397 383 Cannon 412 | . 2 5 . 17 65 55 14 72 3 3 34 2 15 . 56 10 21 10 4 1 9 . . . . . . . 14 Launcher 60 | . 10 . . 1 2 2 8 9 . 5 5 1 3 . . . . . . . . 6 3 . 3 . . . 2 Special 28 | . . . . . . . . . . . . . . . . . 12 . . . . . . 13 . . 3 . . Kinetic 1503 | 6 41 5 . 17 105 46 4 10 1 1 25 3 13 . 71 20 42 20 9 2 44 16 . 29 29 38 112 397 397 Thermal 477 | 6 36 5 . 17 65 55 14 72 3 3 34 2 10 . 59 19 39 17 7 2 12 . . . . . . . . Explosive 54 | . 10 . . 1 2 2 8 9 . 5 5 1 3 . . . . . . . . 3 3 . . . . . 2 Electromagnetic 6 | . . . . . . . . . . . . . . . . . . . . . . 3 . . 3 . . . . Robot Hit Streak 59 | 6 4 4 . 7 19 14 1 12 . 14 9 6 10 . 16 6 17 7 6 8 5 3 2 11 15 12 21 59 21 Robot Miss Streak 8 | 1 5 2 . 2 3 2 1 2 . . 3 . 1 . 3 5 4 2 2 . 3 1 . 1 2 2 2 3 8 Penetration Max 2 | . . . . . . 1 . . . . . . . . 1 . . . . . . . . . . . . 2 2 Secondary Targets 35 | . . . . . . . . . . . . . . . . . . . . . . . . . 1 2 5 9 18 Max Gunslinging Chain 2 | . . . . . . . . . . . . . . . . . . . . . . . . . 1 1 1 1 2 Shots Hit Robots 1203 | 8 31 5 . 19 81 51 2 22 . 2 33 1 14 . 80 18 54 24 11 3 25 5 1 33 14 16 87 277 286 Core Hits 797 | 5 36 4 . 9 41 30 10 18 . 10 26 5 11 . 40 9 25 10 4 2 15 13 2 6 10 11 50 156 239 Critical Kills 48 | . . . . 1 . . . . . . 1 . 1 . 2 3 1 2 . . 2 . . 1 . 1 2 7 24 Critical Parts Destroyed 74 | . . . . 1 . . . . . . . . . . 1 . 1 . . . . . . 1 . . 1 15 54 Critical Strikes 134 | . . . . 2 . . . . . . 1 . 1 . 3 3 2 3 . . 2 . . 2 . 1 3 24 87 Meltdown 5 | . . . . . . . . . . . 1 . 1 . . 1 . 1 . . 1 . . . . . . . . Destroy 129 | . . . . 2 . . . . . . . . . . 3 2 2 2 . . 1 . . 2 . 1 3 24 87 Melee Attacks 29 | . 1 . . . . . . . . . . . . . . . . . . 1 7 . . . . . . 15 5 Impact . | . . . . . . . . . . . . . . . . . . . . . . . . . . . . . . Slashing 29 | . 1 . . . . . . . . . . . . . . . . . . 1 7 . . . . . . 15 5 Piercing . | . . . . . . . . . . . . . . . . . . . . . . . . . . . . . . Sneak Attacks . | . . . . . . . . . . . . . . . . . . . . . . . . . . . . . . Combat Hostiles . | . . . . . . . . . . . . . . . . . . . . . . . . . . . . . . Follow-up Attacks . | . . . . . . . . . . . . . . . . . . . . . . . . . . . . . . Damage Inflicted 39077 | 90 1103 82 . 470 2273 1293 623 1118 . 604 1528 257 641 . 1683 510 1243 748 302 112 795 899 373 774 799 519 2622 8106 9510 Guns 25680 | 90 279 28 . 130 756 458 . 68 . . 304 . 95 . 879 331 770 492 176 81 630 122 . 774 329 514 2617 7971 7786 Cannons 5578 | . 34 52 . 174 797 680 45 572 . 21 514 20 185 . 804 179 460 256 126 31 165 . . . . . . . 463 Explosions 7597 | . 781 . . 148 717 140 578 478 . 583 636 237 361 . . . . . . . . 777 373 . 470 . . 124 1194 Melee . | . . . . . . . . . . . . . . . . . . . . . . . . . . . . . . Ramming 222 | . 9 2 . 18 3 15 . . . . 74 . . . . . 13 . . . . . . . . 5 5 11 67 Kinetic 25309 | 33 146 28 . 130 756 458 . 68 . . 304 . 133 . 832 184 471 384 149 54 603 122 . 774 329 514 2617 7971 8249 Thermal 6494 | 57 513 52 . 174 996 680 45 572 . 21 514 20 147 . 851 326 759 364 153 58 192 . . . . . . . . Explosive 6209 | . 435 . . 148 506 140 578 478 . 583 636 237 361 . . . . . . . . 416 373 . . . . 124 1194 Electromagnetic 843 | . . . . . 12 . . . . . . . . . . . . . . . . 361 . . 470 . . . . Impact . | . . . . . . . . . . . . . . . . . . . . . . . . . . . . . . Slashing . | . . . . . . . . . . . . . . . . . . . . . . . . . . . . . . Piercing . | . . . . . . . . . . . . . . . . . . . . . . . . . . . . . . Highest Corruption 13 | . . . . . 4 2 2 . . . 1 1 5 5 8 1 1 1 1 1 . . . 1 1 . . 4 13 Average Corruption 2 | . . . . . 4 1 1 . . . 1 1 3 5 5 1 1 1 1 1 . . . 1 1 . . 1 4 Corruption Purged 3 | . . . . . . . 2 . . . . . . . . 1 . . . . . . . . . . . . . Corruption Blocked 17 | . . . . . . . . . . . . . . . . . . . . . . . . . . . 3 14 . Effects 177 | . . . . . 19 9 18 . . . 3 5 14 5 53 1 7 5 2 1 . . . 1 9 . . 6 19 Message Errors 40 | . . . . . 5 . 3 . . . 2 . 2 . 14 . 2 2 . . . . . . 4 . . 2 4 Matter Fused 42 | . . . . . 4 2 5 . . . . . 5 2 15 . 1 2 . . . . . 1 1 . . 1 3 Heat Flow Errors 20 | . . . . . 2 4 3 . . . . . 3 . 2 . 1 1 1 . . . . . 1 . . 1 1 Energy Discharges 17 | . . . . . 3 1 3 . . . . 1 1 1 2 . 3 . . . . . . . 1 . . . 1 Parts Rejected 2 | . . . . . . . . . . . . . . . 1 . . . . . . . . . . . . 1 . Parts Fused 1 | . . . . . . . . . . . . . . . . . . . . . . . . . . . . . 1 Data Loss (minor) 23 | . . . . . 4 . 2 . . . . 3 3 1 4 1 . . . 1 . . . . . . . 1 3 Data Loss (major) 9 | . . . . . . 1 . . . . . . . 1 5 . . . . . . . . . 1 . . . 1 Misfires 11 | . . . . . . 1 2 . . . 1 1 . . 2 . . . 1 . . . . . 1 . . . 2 Alerts 5 | . . . . . 1 . . . . . . . . . 4 . . . . . . . . . . . . . . Misdirections 2 | . . . . . . . . . . . . . . . . . . . . . . . . . . . . . 2 Weapon Failures 5 | . . . . . . . . . . . . . . . 4 . . . . . . . . . . . . . 1 Overload Shots . | . . . . . . . . . . . . . . . . . . . . . . . . . . . . . . Overflow Damage 573 | . 47 . . . 195 . 33 21 . 45 24 . . . . . . . 3 6 . 21 90 . . . . 18 70 Projectiles 53 | . . . . . 5 . . 20 . . 19 . . . . . . . 3 6 . . . . . . . . . Explosions 520 | . 47 . . . 190 . 33 1 . 45 5 . . . . . . . . . . 21 90 . . . . 18 70 Melee . | . . . . . . . . . . . . . . . . . . . . . . . . . . . . . . Knockbacks 3 | . . . . . . . . . . . 1 . . . . . . . . . . . . . . . . . 2 Impact 1 | . . . . . . . . . . . 1 . . . . . . . . . . . . . . . . . . Kinetic 2 | . . . . . . . . . . . . . . . . . . . . . . . . . . . . . 2 Secondary . | . . . . . . . . . . . . . . . . . . . . . . . . . . . . . . Self-Inflicted Damage 562 | . 161 . . 5 226 . 55 5 . . 53 31 26 . . . . . . . . . . . . . . . . Shots 14 | . 3 . . 1 5 . 1 1 . . 1 1 1 . . . . . . . . . . . . . . . . Rammed 22 | . 1 . . 2 2 1 . . . . 7 . . . . . 1 . . . . . . . . 1 1 3 3 Targets Rammed 28 | . 2 2 . 2 2 2 . . . . 8 . . . . . 2 . . . . . . . . 1 1 3 3 Kicked . | . . . . . . . . . . . . . . . . . . . . . . . . . . . . . . Crushed 6 | . 1 2 . . . 1 . . . . 1 . . . . . 1 . . . . . . . . . . . . Highest Temperature 406 | 20 91 197 . 130 199 222 235 315 141 54 327 126 176 . 376 228 406 289 199 192 177 6 . 201 178 . 3 115 219 Average Temperature 71 | 15 22 100 . 51 38 69 86 97 76 36 71 68 58 . 69 76 106 101 90 99 55 4 . 93 107 . 3 64 45 Received Heat Transfer 1715 | . 87 57 . . 216 93 9 87 . 18 159 . 90 . 147 9 129 . 7 . 22 9 . . 8 . 12 155 401 Effects 4 | . . . . . . . . . . . . . . . 2 . 2 . . . . . . . . . . . . Shutdowns 3 | . . . . . . . . . . . . . . . 2 . 1 . . . . . . . . . . . . Energy Bleed 1 | . . . . . . . . . . . . . . . . . 1 . . . . . . . . . . . . Siege Activations 20 | . . . . . . . . . . . . . . . . . . . . . 1 . . . . . 2 10 7 Total Turns 356 | . . . . . . . . . . . . . . . . . . . . . 8 . . . . . 20 118 210 Longest Duration 87 | . . . . . . . . . . . . . . . . . . . . . 8 . . . . . 12 26 87 Martial Activations . | . . . . . . . . . . . . . . . . . . . . . . . . . . . . . . Shielding Activations . | . . . . . . . . . . . . . . . . . . . . . . . . . . . . . . Robots Disrupted . | . . . . . . . . . . . . . . . . . . . . . . . . . . . . . . Combat Hostiles . | . . . . . . . . . . . . . . . . . . . . . . . . . . . . . . Robots Corrupted 4 | . . . . . . . . . . . . . . . . . . . . . . 2 . . 2 . . . . Combat Hostiles 4 | . . . . . . . . . . . . . . . . . . . . . . 2 . . 2 . . . . Parts Fried 8 | . . . . . . . . . . . . . . . . . . . . . . 3 . . 1 . . 4 . Impact Corruptions . | . . . . . . . . . . . . . . . . . . . . . . . . . . . . . . Robots Melted 6 | . . . . . . . . 1 . . 1 . 1 . . 1 . 1 . . 1 . . . . . . . . Combat Hostiles 5 | . . . . . . . . 1 . . 1 . 1 . . 1 . 1 . . . . . . . . . . . Parts Melted 25 | . . . . 1 2 . 1 2 . . 2 . 1 . 3 3 5 3 . . 1 . . . . . . 1 . Heat Transferred 9853 | 125 574 111 . 370 1432 1036 74 814 . 37 740 37 259 . 1543 435 1107 548 237 87 287 . . . . . . . . Parts Sabotaged . | . . . . . . . . . . . . . . . . . . . . . . . . . . . . . . Parts Stolen . | . . . . . . . . . . . . . . . . . . . . . . . . . . . . . . Parts Stripped . | . . . . . . . . . . . . . . . . . . . . . . . . . . . . . . Power Chain Reactions . | . . . . . . . . . . . . . . . . . . . . . . . . . . . . . . Alert | -11 -10 -10 -10 -9 -8 -7 -7 -7 -7 -6 -6 -6 -6 -6 -5 -5 -5 -5 -5 -5 -4 -4 -4 -4 -3 -3 -2 -2 -1 ------- Run | Yrd Mat Min Exi Min Mat Fac Low Low Zio Pro Fac Low Low Dat Pro Fac Ext Cet Arc Hub Fac Upp Upp War Pro Res Res Tes Acc Maximum Alert Level 5 | . 2 . . . 1 . . . . . . . . . . . 2 1 1 3 1 . . . . . 2 5 5 Low Security (%) 59 | 100 39 100 . 100 55 100 . . . . 100 . . . . 100 63 1 47 38 51 . . . . 100 84 . . Level 1 19 | . 48 . . . 44 . . . . . . . . . . . 22 98 52 47 48 . . . . . 7 12 . Level 2 4 | . 11 . . . . . . . . . . . . . . . 13 . . 1 . . . . . . 8 14 . Level 3 3 | . . . . . . . . . . . . . . . . . . . . 12 . . . . . . . 14 17 Level 4 11 | . . . . . . . . . . . . . . . . . . . . . . . . . . . . 53 54 Level 5 2 | . . . . . . . . . . . . . . . . . . . . . . . . . . . . 4 28 High Security . | . . . . . . . . . . . . . . . . . . . . . . . . . . . . . . Max Security . | . . . . . . . . . . . . . . . . . . . . . . . . . . . . . . Peak Influence 2176 | 5 436 171 . 173 308 160 . . . . 111 . . . . 98 603 384 260 748 361 . . . . 199 522 1685 2176 Initial 1007 | . . 141 . . . 97 . . . . 18 . . . . 35 7 320 91 56 361 . . . . . . 284 1007 Average 342 | . 224 122 . 41 170 40 . . . . 54 . . . . 28 160 283 199 235 208 . . . . 52 110 1048 1447 Influence Increases 12558 | 15 663 90 . 220 923 405 190 220 . 423 418 90 130 . 326 228 1067 350 239 802 195 200 90 238 85 284 694 2135 1838 Destroy 0b10 Robot/C 6680 | . 320 40 . 140 460 240 160 180 . 220 220 80 120 . 260 120 460 160 80 240 80 180 80 140 80 160 160 1080 1220 Destroy 0b10 Robot/NC 490 | 15 45 10 . 10 50 35 . . . . 20 . . . 20 20 45 10 5 5 15 . . 15 5 . 10 70 85 Destroy Leader 1164 | . 68 10 . 20 120 64 30 40 . 30 60 10 10 . . 42 74 . . 50 32 20 10 . . 30 32 176 236 Allied During Kill 1496 | . . . . 19 94 . . . . 158 16 . . . 46 19 451 170 85 295 2 . . 68 . . 27 46 . Successful Hack 104 | . 15 . . 6 27 15 . . . . 31 . . . . . . . . . . . . . . . . 10 . Disable Machine 600 | . 105 . . 15 105 30 . . . . 15 . . . . 15 15 . 45 30 . . . . . 30 30 150 15 Anti-Garrison Action 150 | . . . . . . . . . . . . . . . . . . . . 150 . . . . . . . . . Destroy Structure 1529 | . 80 . . 10 67 21 . . . . 26 . . . . 12 22 10 24 32 66 . . . . 64 435 498 162 Partial Spotted 15 | . . . . . . . . . . . 15 . . . . . . . . . . . . . . . . . . Lose Combat Pursuer 330 | . 30 30 . . . . . . . 15 15 . . . . . . . . . . . . 15 . . . 105 120 Influence Decreases 10409 | 15 300 382 71 220 708 493 317 130 90 394 388 149 130 . 269 270 508 696 307 224 813 320 90 74 249 284 188 962 1368 Entered New Map 2588 | . . 222 71 . . 118 48 . 90 . 11 23 . . . 22 8 254 137 104 377 45 . . 164 . . 222 672 Time Decay 6551 | 15 280 160 . 220 498 365 269 130 . 334 372 126 100 . 191 181 420 302 130 80 416 275 90 24 85 284 108 650 446 Lost Part 410 | . 20 . . . 20 10 . . . . . . 10 . 10 10 . . . . . . . 10 . . . 70 250 Lost Ally 710 | . . . . . 40 . . . . 60 5 . 20 . 68 57 80 140 40 40 20 . . 40 . . 80 20 . Purge Threat 150 | . . . . . 150 . . . . . . . . . . . . . . . . . . . . . . . . Squads Dispatched 62 | . 3 . . . 1 5 . . . . 1 . . . . . 3 . . 5 4 . . . . 3 1 23 13 Investigation 5 | . 1 . . . . 2 . . . . . . . . . . . . . . . . . . . . . 2 . Extermination 15 | . . . . . . 2 . . . . 1 . . . . . . . . . 2 . . . . . . 6 4 Reinforcement 22 | . 2 . . . 1 1 . . . . . . . . . . 3 . . 2 2 . . . . 3 1 5 2 Assault 15 | . . . . . . . . . . . . . . . . . . . . 2 . . . . . . . 7 6 Garrison 5 | . . . . . . . . . . . . . . . . . . . . 1 . . . . . . . 3 1 Intercept . | . . . . . . . . . . . . . . . . . . . . . . . . . . . . . . Searches Triggered . | . . . . . . . . . . . . . . . . . . . . . . . . . . . . . . Data Miner Redirects 9 | . . . . . . . . . . . . . . . . . . . . . . . . . . . . 5 4 Construction Impeded 2 | . . . . . . . . . . . . . . . . . . . . 1 . . . . . . . 1 . Haulers Reinforced 6 | . . . . . . 1 . . . . . . . . . . . . . . . . . . . 1 1 2 1 Active Scanning Responses . | . . . . . . . . . . . . . . . . . . . . . . . . . . . . . . Cargo Convoy Interrupts . | . . . . . . . . . . . . . . . . . . . . . . . . . . . . . . Stealth | -11 -10 -10 -10 -9 -8 -7 -7 -7 -7 -6 -6 -6 -6 -6 -5 -5 -5 -5 -5 -5 -4 -4 -4 -4 -3 -3 -2 -2 -1 --------- Run | Yrd Mat Min Exi Min Mat Fac Low Low Zio Pro Fac Low Low Dat Pro Fac Ext Cet Arc Hub Fac Upp Upp War Pro Res Res Tes Acc Distress Signals 28 | . 2 1 . . 2 . . . . . . . . . 1 . . 2 . 1 . . . 4 . 9 2 3 1 Communications Jammed 285 | . . . . . . . . . . . 14 . . . . 19 1 15 . . 2 . . 125 1 . . 46 62 Distress Signals 282 | . . . . . . . . . . . 14 . . . . 19 1 15 . . 2 . . 125 1 . . 46 59 Times Spotted 474 | . 28 6 . 8 28 16 14 10 . 12 21 4 6 . 19 7 25 9 6 9 7 9 4 36 9 12 17 68 84 Peak Tracking Total 16 | . 5 4 . 4 4 4 7 4 . 4 4 4 5 . 5 2 3 5 1 5 2 4 2 16 4 8 3 5 12 Tactical Retreats 18 | . 1 2 . . . . . . . 1 1 . . . . . . . . . . . . 1 . . . 5 7 Traps | -11 -10 -10 -10 -9 -8 -7 -7 -7 -7 -6 -6 -6 -6 -6 -5 -5 -5 -5 -5 -5 -4 -4 -4 -4 -3 -3 -2 -2 -1 ------- Run | Yrd Mat Min Exi Min Mat Fac Low Low Zio Pro Fac Low Low Dat Pro Fac Ext Cet Arc Hub Fac Upp Upp War Pro Res Res Tes Acc Traps Triggered 6 | . 1 . . . . 4 . . . . . . . . . . . . . . . . . . . . . 1 . Indirectly . | . . . . . . . . . . . . . . . . . . . . . . . . . . . . . . Trap Hack Attempts . | . . . . . . . . . . . . . . . . . . . . . . . . . . . . . . Triggered . | . . . . . . . . . . . . . . . . . . . . . . . . . . . . . . Disarmed . | . . . . . . . . . . . . . . . . . . . . . . . . . . . . . . Reprogrammed . | . . . . . . . . . . . . . . . . . . . . . . . . . . . . . . Reused . | . . . . . . . . . . . . . . . . . . . . . . . . . . . . . . Traps Extracted . | . . . . . . . . . . . . . . . . . . . . . . . . . . . . . . Installed . | . . . . . . . . . . . . . . . . . . . . . . . . . . . . . . Triggered . | . . . . . . . . . . . . . . . . . . . . . . . . . . . . . . Machines | -11 -10 -10 -10 -9 -8 -7 -7 -7 -7 -6 -6 -6 -6 -6 -5 -5 -5 -5 -5 -5 -4 -4 -4 -4 -3 -3 -2 -2 -1 ---------- Run | Yrd Mat Min Exi Min Mat Fac Low Low Zio Pro Fac Low Low Dat Pro Fac Ext Cet Arc Hub Fac Upp Upp War Pro Res Res Tes Acc Machines Disabled 46 | . 7 . . 1 7 2 . 1 . . 1 . 1 . 2 1 1 . 3 3 . . . . . 2 2 11 1 Max in Single Turn 4 | . 4 . . 1 2 1 . 1 . . 1 . 1 . 1 1 1 . . . . . . . . 1 1 1 1 Garrison Access 2 | . . . . . . . . . . . . . . . . 1 . . . 1 . . . . . . . . . Machines Repaired . | . . . . . . . . . . . . . . . . . . . . . . . . . . . . . . Machines Dismantled . | . . . . . . . . . . . . . . . . . . . . . . . . . . . . . . Machines Sabotaged . | . . . . . . . . . . . . . . . . . . . . . . . . . . . . . . Overloaded Fab Kills . | . . . . . . . . . . . . . . . . . . . . . . . . . . . . . . Hacking | -11 -10 -10 -10 -9 -8 -7 -7 -7 -7 -6 -6 -6 -6 -6 -5 -5 -5 -5 -5 -5 -4 -4 -4 -4 -3 -3 -2 -2 -1 --------- Run | Yrd Mat Min Exi Min Mat Fac Low Low Zio Pro Fac Low Low Dat Pro Fac Ext Cet Arc Hub Fac Upp Upp War Pro Res Res Tes Acc Machines Accessed 48 | . 7 . 1 2 9 5 1 . 1 . 3 1 . 3 2 2 1 . . 1 . . . 2 . 4 . 1 2 Terminals 17 | . 6 . . 2 7 1 . . . . . . . . 1 . . . . . . . . . . . . . . Fabricators 3 | . . . . . . 1 . . . . . . . . . 1 . . . . . . . . . 1 . . . Repair Stations 6 | . 1 . . . . 1 . . . . 2 . . . . . . . . . . . . . . 1 . . 1 Recycling Units 4 | . . . . . 1 1 . . . . . . . . 1 . 1 . . . . . . . . . . . . Scanalyzers 3 | . . . . . 1 . . . . . 1 . . . . . . . . . . . . . . . . 1 . Garrison Access 6 | . . . . . . 1 . . . . . . . . . 1 . . . 1 . . . . . 2 . . 1 Total Hacks 142 | . 26 . 1 5 35 13 1 . 2 . 10 1 . 20 3 2 2 . . 2 . . . 8 . 7 . 2 2 Successful 80 | . 11 . 1 1 22 6 1 . 2 . 3 1 . 20 1 1 . . . . . . . 8 . 1 . 1 . Failed 60 | . 15 . . 3 12 7 . . . . 7 . . . 2 1 2 . . 2 . . . . . 6 . 1 2 Catastrophic 12 | . 1 . . 3 1 3 . . . . 1 . . . . 1 . . . . . . . . . 1 . . 1 Database Lockouts 2 | . . . . 1 1 . . . . . . . . . . . . . . . . . . . . . . . . Manual 62 | . 22 . . 6 28 2 . . . . . . . . . . 2 1 . . . . . 1 . . . . . Terminals 65 | . 23 . . 5 31 4 . . . . . . . . 2 . . . . . . . . . . . . . . Fabricators 4 | . . . . . . 1 . . . . . . . . . 1 . . . . . . . . . 2 . . . Repair Stations 17 | . 3 . . . . 3 . . . . 9 . . . . . . . . . . . . . . 1 . . 1 Recycling Units 7 | . . . . . 2 2 . . . . . . . . 1 . 2 . . . . . . . . . . . . Scanalyzers 5 | . . . . . 2 . . . . . 1 . . . . . . . . . . . . . . . . 2 . Garrison Access 11 | . . . . . . 3 . . . . . . . . . 1 . . . 2 . . . . . 4 . . 1 Terminal Hacks 45 | . . . 1 1 9 1 1 . 2 . . 1 . 20 1 . . . . . . . . 8 . . . . . Record 11 | . . . 1 . . . . . . . . . . 2 . . . . . . . . . 8 . . . . . Part Schematic 14 | . . . . . . . . . 2 . . . . 12 . . . . . . . . . . . . . . . Robot Schematic 3 | . . . . . . . . . . . . . . 3 . . . . . . . . . . . . . . . Prototype ID Bank 9 | . . . . 1 5 . . . . . . . . 3 . . . . . . . . . . . . . . . Open Door 3 | . . . . . . . 1 . . . . 1 . . 1 . . . . . . . . . . . . . . Branch Access Points 1 | . . . . . . 1 . . . . . . . . . . . . . . . . . . . . . . . Terminal Index 1 | . . . . . 1 . . . . . . . . . . . . . . . . . . . . . . . . Unreport Threat 1 | . . . . . 1 . . . . . . . . . . . . . . . . . . . . . . . . Hauler Manifests 1 | . . . . . 1 . . . . . . . . . . . . . . . . . . . . . . . . Registered Components 1 | . . . . . 1 . . . . . . . . . . . . . . . . . . . . . . . . Fabricator Hacks 2 | . . . . . . 1 . . . . . . . . . . . . . . . . . . . 1 . . . Load Schematic 1 | . . . . . . . . . . . . . . . . . . . . . . . . . . 1 . . . Build 1 | . . . . . . 1 . . . . . . . . . . . . . . . . . . . . . . . Repair Station Hacks 7 | . 2 . . . . 2 . . . . 3 . . . . . . . . . . . . . . . . . . Scan Component 5 | . 1 . . . . 1 . . . . 3 . . . . . . . . . . . . . . . . . . Repair 2 | . 1 . . . . 1 . . . . . . . . . . . . . . . . . . . . . . . Recycling Unit Hacks 1 | . . . . . 1 . . . . . . . . . . . . . . . . . . . . . . . . Retrieve Components 1 | . . . . . 1 . . . . . . . . . . . . . . . . . . . . . . . . Scanalyzer 2 | . . . . . 1 . . . . . . . . . . . . . . . . . . . . . . 1 . Retrieve Study 2 | . . . . . 1 . . . . . . . . . . . . . . . . . . . . . . 1 . Garrison Access Hacks 1 | . . . . . . . . . . . . . . . . 1 . . . . . . . . . . . . . Seal Access 1 | . . . . . . . . . . . . . . . . 1 . . . . . . . . . . . . . Unauthorized Hacks 22 | . 9 . . . 11 2 . . . . . . . . . . . . . . . . . . . . . . . Terminals 22 | . 9 . . . 11 2 . . . . . . . . . . . . . . . . . . . . . . . Botnet 9 | . 3 . . . 5 1 . . . . . . . . . . . . . . . . . . . . . . . Operators 2 | . 1 . . . 1 . . . . . . . . . . . . . . . . . . . . . . . . Skim 11 | . 5 . . . 5 1 . . . . . . . . . . . . . . . . . . . . . . . Fabricators . | . . . . . . . . . . . . . . . . . . . . . . . . . . . . . . Repair Stations . | . . . . . . . . . . . . . . . . . . . . . . . . . . . . . . Recycling Units . | . . . . . . . . . . . . . . . . . . . . . . . . . . . . . . Scanalyzers . | . . . . . . . . . . . . . . . . . . . . . . . . . . . . . . Garrison Access . | . . . . . . . . . . . . . . . . . . . . . . . . . . . . . . Data Cores Recovered . | . . . . . . . . . . . . . . . . . . . . . . . . . . . . . . Used . | . . . . . . . . . . . . . . . . . . . . . . . . . . . . . . Hacking Detections 36 | . 7 . . 2 8 5 . . . . 3 . . . 1 1 1 . . 1 . . . . . 4 . 1 2 Full Trace Events 2 | . . . . . . 2 . . . . . . . . . . . . . . . . . . . . . . . Feedback Events . | . . . . . . . . . . . . . . . . . . . . . . . . . . . . . . Feedback Blocked . | . . . . . . . . . . . . . . . . . . . . . . . . . . . . . . Robot Schematics Acquired 7 | . . . . . . . . . 4 . . . . 3 . . . . . . . . . . . . . . . Robots Built . | . . . . . . . . . . . . . . . . . . . . . . . . . . . . . . Authchips . | . . . . . . . . . . . . . . . . . . . . . . . . . . . . . . Time . | . . . . . . . . . . . . . . . . . . . . . . . . . . . . . . Total Robot Build Rating . | . . . . . . . . . . . . . . . . . . . . . . . . . . . . . . Part Schematics Acquired 30 | . . . . . . . . . 15 . . . . 12 . . . . . . . . . . . . . 3 . Parts Built 1 | . . . . . . 1 . . . . . . . . . . . . . . . . . . . . . . . Authchips . | . . . . . . . . . . . . . . . . . . . . . . . . . . . . . . Time 93 | . . . . . . 93 . . . . . . . . . . . . . . . . . . . . . . . Total Part Build Rating 7 | . . . . . . 7 . . . . . . . . . . . . . . . . . . . . . . . Part Studies Acquired 2 | . . . . . 1 . . . . . . . . . . . . . . . . . . . . . . 1 . Parts Repaired 2 | . 1 . . . . 1 . . . . . . . . . . . . . . . . . . . . . . . Time 79 | . 26 . . . . 53 . . . . . . . . . . . . . . . . . . . . . . . Parts Recycled . | . . . . . . . . . . . . . . . . . . . . . . . . . . . . . . Recycled Matter . | . . . . . . . . . . . . . . . . . . . . . . . . . . . . . . Retrieved Matter . | . . . . . . . . . . . . . . . . . . . . . . . . . . . . . . Retrieved Components 9 | . . . . . 9 . . . . . . . . . . . . . . . . . . . . . . . . Parts Scanalyzed . | . . . . . . . . . . . . . . . . . . . . . . . . . . . . . . Part Schematics Acquired . | . . . . . . . . . . . . . . . . . . . . . . . . . . . . . . Parts Damaged . | . . . . . . . . . . . . . . . . . . . . . . . . . . . . . . Bothacking | -11 -10 -10 -10 -9 -8 -7 -7 -7 -7 -6 -6 -6 -6 -6 -5 -5 -5 -5 -5 -5 -4 -4 -4 -4 -3 -3 -2 -2 -1 ------------ Run | Yrd Mat Min Exi Min Mat Fac Low Low Zio Pro Fac Low Low Dat Pro Fac Ext Cet Arc Hub Fac Upp Upp War Pro Res Res Tes Acc Used RIF Installer . | . . . . . . . . . . . . . . . . . . . . . . . . . . . . . . Robots Hacked 1 | . . . . . . . . . . . . . . . . . . . . . . . . . . . 1 . . Non-combat . | . . . . . . . . . . . . . . . . . . . . . . . . . . . . . . Combat 1 | . . . . . . . . . . . . . . . . . . . . . . . . . . . 1 . . Robot Hacks Applied 1 | . . . . . . . . . . . . . . . . . . . . . . . . . . . 1 . . parse_system 1 | . . . . . . . . . . . . . . . . . . . . . . . . . . . 1 . . Manual 1 | . . . . . . . . . . . . . . . . . . . . . . . . . . . 1 . . Relay Couplers Released 10 | . . . . . . . . . . . . . . . . . . . . 4 . . . . . . . 3 3 Machine Destruction 4 | . . . . . . . . . . . . . . . . . . . . 4 . . . . . . . . . Programmers 6 | . . . . . . . . . . . . . . . . . . . . . . . . . . . . 3 3 Fabnet Peak Effective % . | . . . . . . . . . . . . . . . . . . . . . . . . . . . . . . Robots Rewired 32 | . . . . . . . . . . . . . 1 . 13 . 13 . . . . . . 5 . . . . . Allies Hacked 2 | . . . . . . . . . . . . . . . . 2 . . . . . . . . . . . . . Hacks Repelled . | . . . . . . . . . . . . . . . . . . . . . . . . . . . . . . Allies | -11 -10 -10 -10 -9 -8 -7 -7 -7 -7 -6 -6 -6 -6 -6 -5 -5 -5 -5 -5 -5 -4 -4 -4 -4 -3 -3 -2 -2 -1 -------- Run | Yrd Mat Min Exi Min Mat Fac Low Low Zio Pro Fac Low Low Dat Pro Fac Ext Cet Arc Hub Fac Upp Upp War Pro Res Res Tes Acc Total Allies 67 | . . . . 5 . . . . 10 . . . 1 . 13 . 23 5 . . . . . 5 . . 5 . . Largest Group 20 | . . . . 5 5 . . . 10 10 5 . 1 . 8 5 20 20 16 13 1 . . 5 1 1 5 1 . Highest-Rated Group 1020 | . . . . 84 84 . . . 251 251 105 . 32 . 274 78 713 1020 913 716 20 . . 274 64 64 753 339 . Highest-Rated Ally 369 | . . . . 31 31 . . . 51 51 25 . 32 . 46 30 159 154 146 96 20 . . 64 64 64 369 339 . Total Orders 28 | . . . . . . . . . . . 5 . . . 1 4 8 7 . . . . . . . . . 1 2 STAY 5 | . . . . . . . . . . . . . . . 1 . 1 3 . . . . . . . . . . . FOLLOW 5 | . . . . . . . . . . . . . . . . . 2 3 . . . . . . . . . . . RETURN 18 | . . . . . . . . . . . 5 . . . . 4 5 1 . . . . . . . . . 1 2 Ally Attacks 631 | . . . . . 77 . . . . 32 5 . 2 . 50 45 126 56 30 63 . . . 44 . . 96 5 . Total Damage 21189 | . . . . . 732 . . . . 626 247 . 68 . 1053 373 2829 1301 849 1698 . . . 2249 . . 7736 1428 . Kills 106 | . . . . . 9 . . . . 7 3 . . . 5 3 19 8 4 14 . . . 11 . . 12 11 . Allies Corrupted 1 | . . . . . . . . . . . . . 1 . . . . . . . . . . . . . . . . Allies Melted 2 | . . . . . . . . . . . . . . . 2 . . . . . . . . . . . . . . Intel | -11 -10 -10 -10 -9 -8 -7 -7 -7 -7 -6 -6 -6 -6 -6 -5 -5 -5 -5 -5 -5 -4 -4 -4 -4 -3 -3 -2 -2 -1 ------- Run | Yrd Mat Min Exi Min Mat Fac Low Low Zio Pro Fac Low Low Dat Pro Fac Ext Cet Arc Hub Fac Upp Upp War Pro Res Res Tes Acc Active Infowar (turns) 28562 | 29 1071 329 368 236 . 1715 1081 1257 1350 1280 1174 974 1040 149 1861 730 1642 652 267 163 1015 1623 1118 1176 913 1383 453 2396 1117 Optics 5918 | . . . . . . . . . . . . . . . . . . . . . 276 1623 1118 1130 . . . 654 1117 Sensors 23730 | . . . . . . 1715 1081 1257 1350 1280 996 967 959 149 1142 574 977 185 27 163 963 1600 1118 1176 828 1375 453 2320 1075 Terrain 17 | 17 . . . . . . . . . . . . . . . . . . . . . . . . . . . . . Seismic 2016 | 12 1071 329 368 236 . . . . . . . . . . . . . . . . . . . . . . . . . Jamming 19707 | . . . . . . . . . . . 1086 974 1040 149 1861 718 1640 652 267 163 1014 1623 1118 1168 913 1383 453 2396 1089 Robot Analysis Total . | . . . . . . . . . . . . . . . . . . . . . . . . . . . . . . Derelict Logs Recovered 16 | . . . . 2 . . . 1 2 2 . 1 1 . 1 . . . . . . 3 3 . . . . . . Drone Launches 18 | . . . . . . . . . . . 5 . . . . 4 5 1 . . . . . . . . . 1 2 Drone Recoveries 18 | . . . . . . . . . . . 5 . . . . 4 5 1 . . . . . . . . . 1 2 Exploration | -11 -10 -10 -10 -9 -8 -7 -7 -7 -7 -6 -6 -6 -6 -6 -5 -5 -5 -5 -5 -5 -4 -4 -4 -4 -3 -3 -2 -2 -1 ------------- Run | Yrd Mat Min Exi Min Mat Fac Low Low Zio Pro Fac Low Low Dat Pro Fac Ext Cet Arc Hub Fac Upp Upp War Pro Res Res Tes Acc Turns Passed 31465 | 124 1071 329 368 944 1405 1850 1433 1385 1352 1327 1174 974 1040 149 1865 733 1642 665 267 163 1018 1623 1118 1176 914 1383 460 2396 1117 Spaces Moved 16441 | 61 544 195 231 549 699 961 772 717 787 740 559 581 584 88 898 370 729 259 137 94 479 985 691 667 542 784 204 1089 445 Core 59 | 4 . . . . . . . . . . . . . . . . . . . . . . . . . . . . 55 Treads 16382 | 57 544 195 231 549 699 961 772 717 787 740 559 581 584 88 898 370 729 259 137 94 479 985 691 667 542 784 204 1089 390 Legs . | . . . . . . . . . . . . . . . . . . . . . . . . . . . . . . Wheels . | . . . . . . . . . . . . . . . . . . . . . . . . . . . . . . Hover . | . . . . . . . . . . . . . . . . . . . . . . . . . . . . . . Flight . | . . . . . . . . . . . . . . . . . . . . . . . . . . . . . . Fastest Speed 50 | 50 160 160 160 160 160 167 167 167 167 167 165 165 162 162 160 162 162 160 160 160 160 160 160 160 160 160 146 135 50 Average Speed 160 | 152 160 160 160 160 163 168 167 167 167 167 165 165 163 162 161 162 163 160 160 160 160 160 160 160 160 160 147 145 131 Slowest Speed 246 | 160 160 160 160 160 170 246 167 167 167 167 167 165 165 162 162 162 164 162 160 160 160 160 160 160 160 160 160 151 147 Overloaded Moves . | . . . . . . . . . . . . . . . . . . . . . . . . . . . . . . Propulsion Burnouts . | . . . . . . . . . . . . . . . . . . . . . . . . . . . . . . Robots Hopped . | . . . . . . . . . . . . . . . . . . . . . . . . . . . . . . Potential Cave-ins 5 | . . . . . . . . . . . . . . . . . . . . . . . . 1 . . . 4 . Cave-ins Triggered 1 | . . . . . . . . . . . . . . . . . . . . . . . . 1 . . . . . Exploration Rate (%) 56 | 4 87 32 63 99 51 24 79 74 84 69 14 65 59 68 86 13 87 74 92 10 8 88 79 80 70 25 9 80 12 Regions Visited 29 Branch Regions 20 Pre-discovered Areas 14 | . . . 1 1 6 . . . 3 . . . . 1 . . . . . . . 1 1 . . . . . . Known Exits Taken 24 | . . . . . 1 1 1 1 1 1 1 1 1 1 1 1 1 1 1 1 1 1 1 1 1 1 1 1 . Unknown Exits Taken 5 | 1 1 1 1 1 . . . . . . . . . . . . . . . . . . . . . . . . . Scrap Searched 38 | . . . . 2 . . 3 5 3 4 . 4 9 . 2 . . . . . . 3 2 . 1 . . . . Spaces Dug 222 | . 6 . . . 36 . 15 32 . . 13 6 1 . . . . . . 1 20 23 31 . 18 9 . 9 2 Terrain Destroyed 952 | . 90 . . 10 65 16 82 95 1 46 24 7 35 . 4 4 10 3 1 2 52 44 42 7 30 34 51 127 70 Melee 16 | . . . . . . . . . . . . . . . . . . . . 1 7 . . . . . . 6 2 Projectile 339 | . . . . . 14 1 4 21 1 1 6 1 5 . 4 4 10 3 1 1 45 16 . 7 30 34 51 69 10 AOE 581 | . 90 . . 10 51 15 78 74 . 45 18 6 30 . . . . . . . . 28 42 . . . . 50 44 Terrain Rammed . | . . . . . . . . . . . . . . . . . . . . . . . . . . . . . . Walls Destroyed . | . . . . . . . . . . . . . . . . . . . . . . . . . . . . . . Machines Disabled . | . . . . . . . . . . . . . . . . . . . . . . . . . . . . . . Actions | -11 -10 -10 -10 -9 -8 -7 -7 -7 -7 -6 -6 -6 -6 -6 -5 -5 -5 -5 -5 -5 -4 -4 -4 -4 -3 -3 -2 -2 -1 --------- Run | Yrd Mat Min Exi Min Mat Fac Low Low Zio Pro Fac Low Low Dat Pro Fac Ext Cet Arc Hub Fac Upp Upp War Pro Res Res Tes Acc Total 20049 | 78 661 202 230 583 869 1126 894 825 822 821 750 593 648 95 1232 478 1132 491 178 102 686 1015 699 760 568 891 292 1627 701 Wait 1607 | 1 31 1 . . 38 82 80 48 26 62 116 3 9 . 57 52 195 176 30 5 149 3 2 24 4 46 23 277 67 Move 16411 | 60 543 194 230 548 698 960 771 716 786 739 558 580 583 87 897 369 728 258 136 93 478 984 690 666 541 783 203 1088 444 Hop . | . . . . . . . . . . . . . . . . . . . . . . . . . . . . . . Pick Up 176 | 2 17 . . 3 20 14 5 3 2 . 4 2 7 . 11 7 12 5 3 . 9 3 . 5 1 9 5 19 8 Fast Attach 120 | 8 1 . . . 4 3 2 . . 2 1 . 2 4 9 8 2 9 . . 3 . . 12 1 8 4 31 6 Attach 61 | . 3 . . 2 6 3 . . . . 3 . 2 . 1 4 1 . . . 3 . . 1 . 2 1 8 21 Detach 10 | 1 . . . . . . . . . . . . . . . . . . . . . . . . . . . 2 7 Swap 348 | . 8 . . 5 25 22 14 14 4 9 27 4 10 . 34 12 38 11 2 2 12 10 3 10 6 7 13 28 18 Drop 319 | . 4 . . 5 30 13 8 4 3 3 9 2 6 4 27 14 25 22 3 . 11 5 1 21 4 18 11 49 17 Fire 662 | 6 51 5 . 18 46 27 14 40 1 6 24 2 10 . 36 10 33 10 4 1 14 10 3 21 10 17 31 107 105 Melee 29 | . 1 . . . . . . . . . . . . . . . . . . 1 7 . . . . . . 15 5 Ram . | . . . . . . . . . . . . . . . . . . . . . . . . . . . . . . Kick . | . . . . . . . . . . . . . . . . . . . . . . . . . . . . . . Crush 28 | . 2 2 . 2 2 2 . . . . 8 . . . . . 2 . . . . . . . . 1 1 3 3 Escape Stasis . | . . . . . . . . . . . . . . . . . . . . . . . . . . . . . . Rewire 277 | . . . . . . . . . . . . . 19 . 160 2 96 . . . . . . . . . . . . Trap . | . . . . . . . . . . . . . . . . . . . . . . . . . . . . . . Miscellaneous 1 | . . . . . . . . . . . . . . . . . . . . . . . . . 1 . . . . Route ------- -11/Scrapyard -10/Materials (discovered 4 exits: [*Mat x2] / [*Min] / [*Sub]) -10/Mines -10/Exiles -9/Mines (discovered 2 exits: *Mat x2) -8/Materials (discovered 2 exits: *Fac x2) -7/Factory (discovered 4 exits: Fac / Sto / *Low x2) -7/Lower Caves -7/Lower Caves (discovered 2 exits: *Fac / *Zio) -7/Zion -6/Proximity Caves -6/Factory (discovered 6 exits: Fac x4 / *Low x2) -6/Lower Caves -6/Lower Caves -6/Data Miner -5/Proximity Caves -5/Factory (discovered 4 exits: Upp x2 / *Ext x2) -5/Extension (discovered 3 exits: *Fac x2 / *Cet) -5/Cetus (discovered 2 exits: *Fac / *Arc) -5/Archives (discovered 3 exits: *Fac / *Hub x2) -5/Hub_04(d) -4/Factory -4/Upper Caves -4/Upper Caves (discovered 2 exits: *Res / *War) -4/Warlord -3/Proximity Caves -3/Research (discovered 2 exits: *Res / Qua) -2/Research -2/Testing -1/Access To Epsilon Eridani History --------- Turn | Location | Event 5 | -11/Scrapyard | Discovered new exit (range 14) 125 | -11/Scrapyard | Entered Materials 305 | -10/Materials | Build established: Mutant 655 | -10/Materials | Discovered new exit (range 9) 741 | -10/Materials | Repaired Grenade Launcher 818 | -10/Materials | Discovered new exit (range 10) 885 | -10/Materials | Discovered new exit (range 7) 996 | -10/Materials | Discovered new exit (range 8) 1125 | -10/Materials | Derelicts attacked the area 1196 | -10/Materials | Entered Mines 1261 | -10/Mines | Met a Derelict bent on vengeance 1382 | -10/Mines | Assembled infested the area 1387 | -10/Mines | Assisted by a Guerilla fighting off Assembled 1519 | -10/Mines | Deemed a non-threat by the Exiles lab entrance 1519 | -10/Mines | Discovered new exit (range 5) 1525 | -10/Mines | Entered Exiles 1564 | -10/Exiles | Met 8R-AWN 1591 | -10/Exiles | Met EX-HEX 1703 | -10/Exiles | Met EX-DEC 1730 | -10/Exiles | Learned location of Zion (-7) 1757 | -10/Exiles | Met EX-BIN 1876 | -10/Exiles | Discovered new exit (range 12) 1893 | -10/Exiles | Entered Mines 1937 | -9/Mines | Learned 2 Materials zone layouts 2122 | -9/Mines | Discovered new exit (range 6) 2280 | -9/Mines | Assisted by bots powering up and referring to "LRC-V3" 2399 | -9/Mines | Central database locked down 2415 | -9/Mines | Discovered new exit (range 5) 2837 | -9/Mines | Entered Materials 2837 | -8/Materials | Accompanied by 5 allies 2837 | -8/Materials | Evolved 4 slots: Propulsion x1, Utility x1, Weapon x2 2838 | -8/Materials | Identified exit to Factory 2842 | -8/Materials | Led the pair of lost Derelicts to an unsafe place 2975 | -8/Materials | Central database locked down 3132 | -8/Materials | Build established: Scavenger-Gunner 3855 | -8/Materials | Learned location of Extension (-5) 3858 | -8/Materials | Learned Storage terminal intel 3859 | -8/Materials | Learned 8 Factory zone layouts 3860 | -8/Materials | Learned location of 2 exits from Lower Caves 3872 | -8/Materials | Learned 4 Recycling zone layouts 4071 | -8/Materials | Build established: Gunner 4196 | -8/Materials | Discovered exit to Factory (range 3) 4242 | -8/Materials | Entered Factory 4242 | -7/Factory | Evolved 2 slots: Propulsion x1, Utility x1 4243 | -7/Factory | Identified exit to Factory 4542 | -7/Factory | Build established: Skirmisher 4578 | -7/Factory | Fabricated Adv. Plasma Rifle (x1) 4720 | -7/Factory | Identified exit to Storage 4720 | -7/Factory | Identified exit to Lower Caves 5162 | -7/Factory | Repaired Broken Arm. Treads 5506 | -7/Factory | Noticed a derelict Sapper rigging charges 6092 | -7/Factory | Entered Lower Caves 6093 | -7/Lower Caves | Identified exit to Lower Caves 6427 | -7/Lower Caves | Lost 3 allies 7516 | -7/Lower Caves | Attracted the attention of an 0b10 outpost 7525 | -7/Lower Caves | Entered another Lower Caves area 7526 | -7/Lower Caves | Identified exit to Zion 7594 | -7/Lower Caves | Discovered exit to Factory (range 10) 7716 | -7/Lower Caves | Encountered a Warlord checkpoint 7780 | -7/Lower Caves | Spotted B-75 Beast 8035 | -7/Lower Caves | Destroyed B-75 Beast 8155 | -7/Lower Caves | Learned location of 1 exit from Factory 8531 | -7/Lower Caves | Found DRS Beacon 8910 | -7/Lower Caves | Entered Zion 8936 | -7/Zion | Gained Derelict followers 8957 | -7/Zion | Given the Hacking Drone Bay 8958 | -7/Zion | Found Prototype Device 8960 | -7/Zion | Identified Hacking Drone Bay 9095 | -7/Zion | Discovered new exit (range 15) 9119 | -7/Zion | Learned location of 1 exit from Factory 9130 | -7/Zion | Identified exit to Proximity Caves 9569 | -7/Zion | Met Imprinter 9830 | -7/Zion | Learned location of Warlord (-4) 9843 | -7/Zion | Learned location of Storage (-7) 9853 | -7/Zion | Gained Derelict followers 9952 | -7/Zion | Gained Derelict followers 10089 | -7/Zion | Given A8's code to call for help 10262 | -7/Zion | Entered Proximity Caves 10262 | -6/Proximity Caves | Accompanied by 10 allies 10885 | -6/Proximity Caves | Learned Factory garrison access intel 11276 | -6/Proximity Caves | Discovered exit to Factory (range 7) 11333 | -6/Proximity Caves | Learned Factory stockpile data 11589 | -6/Proximity Caves | Entered Factory 11589 | -6/Factory | Accompanied by 5 allies 11589 | -6/Factory | Evolved 2 slots: Power x1, Utility x1 11590 | -6/Factory | Identified exit to Factory 11592 | -6/Factory | Loaded intel: 4 garrison access locations 11710 | -6/Factory | Lost 3 allies 11939 | -6/Factory | Identified exit to Lower Caves 12763 | -6/Factory | Entered Lower Caves 13179 | -6/Lower Caves | Discovered new exit (range 9) 13196 | -6/Lower Caves | Identified exit to Lower Caves 13217 | -6/Lower Caves | Encountered a Warlord checkpoint 13737 | -6/Lower Caves | Entered another Lower Caves area 14151 | -6/Lower Caves | Learned Factory terminal intel 14172 | -6/Lower Caves | Attracted the attention of an 0b10 outpost 14528 | -6/Lower Caves | Found Alien Artifact 14528 | -6/Lower Caves | Identified Core Expander 14528 | -6/Lower Caves | Installed Core Expander, added new Propulsion slot 14559 | -6/Lower Caves | Discovered new exit (range 9) 14573 | -6/Lower Caves | Identified exit to Data Miner 14702 | -6/Lower Caves | Build established: Scavenger-Skirmisher 14777 | -6/Lower Caves | Entered Data Miner 14780 | -6/Data Miner | Discovered new exit (range 6) 14786 | -6/Data Miner | Identified exit to Proximity Caves 14810 | -6/Data Miner | Met Data Miner 14838 | -6/Data Miner | Learned location of Section 7 (-2) 14838 | -6/Data Miner | Acquired the access code to Warlord's prototype stash 14862 | -6/Data Miner | Received God Mode back door access code from Data Miner 14926 | -6/Data Miner | Entered Proximity Caves 15491 | -5/Proximity Caves | Attracted the attention of an 0b10 base 15713 | -5/Proximity Caves | Attracted the attention of an 0b10 checkpoint 15765 | -5/Proximity Caves | Learned Factory security intel 15850 | -5/Proximity Caves | Snuck into a huge 0b10 base via the rear entrance 15963 | -5/Proximity Caves | Derelicts attacked a huge 0b10 base 16043 | -5/Proximity Caves | Discovered exit to Factory (range 5) 16100 | -5/Proximity Caves | Lost 4 allies 16177 | -5/Proximity Caves | Lost 4 allies 16303 | -5/Proximity Caves | Spotted B-75 Beast 16348 | -5/Proximity Caves | Allies destroyed B-75 Beast 16373 | -5/Proximity Caves | Lost 5 allies 16791 | -5/Proximity Caves | Entered Factory 16791 | -5/Factory | Accompanied by 5 allies 16791 | -5/Factory | Evolved 2 slots: Utility x2 16792 | -5/Factory | Identified exit to Extension 16794 | -5/Factory | Loaded intel: 27 terminal locations 17016 | -5/Factory | Identified exit to Upper Caves 17090 | -5/Factory | Build established: Scavenger-Tank 17219 | -5/Factory | Lost 4 allies 17524 | -5/Factory | Entered Extension 17524 | -5/Extension | Accompanied by 1 ally 17583 | -5/Extension | Identified exit to Factory 17621 | -5/Extension | Rescued A7 17749 | -5/Extension | Identified exit to Cetus 17778 | -5/Extension | Rescued a captive Derelict 17798 | -5/Extension | Found Prototype Processor 17798 | -5/Extension | Identified Exp. Targeting Computer 18384 | -5/Extension | Spotted B-75 Beast 18389 | -5/Extension | Destroyed B-75 Beast 18415 | -5/Extension | Spotted B-75 Beast 18432 | -5/Extension | Allies destroyed B-75 Beast 18591 | -5/Extension | Rescued a captive Derelict 18593 | -5/Extension | Rescued a captive Derelict 18627 | -5/Extension | Rescued a captive Derelict 18627 | -5/Extension | Rescued a captive Derelict 18904 | -5/Extension | Rescued a captive Derelict 18905 | -5/Extension | Rescued a captive Derelict 19037 | -5/Extension | Rescued a captive Derelict 19038 | -5/Extension | Rescued a captive Derelict 19075 | -5/Extension | Rescued a captive Derelict 19141 | -5/Extension | Build established: Commander-Tank 19166 | -5/Extension | Entered Cetus 19166 | -5/Cetus | Accompanied by 20 allies (A7) 19171 | -5/Cetus | Acquired a Cetus Manufacturing Module code from A7 19201 | -5/Cetus | Spotted Cetus Guard 19201 | -5/Cetus | Spotted Cetus Guard 19204 | -5/Cetus | Spotted Cetus Guard 19206 | -5/Cetus | Allies destroyed Cetus Guard 19206 | -5/Cetus | Spotted Cetus Guard 19213 | -5/Cetus | Allies destroyed Cetus Guard 19218 | -5/Cetus | Allies destroyed Cetus Guard 19227 | -5/Cetus | Allies destroyed Cetus Guard 19254 | -5/Cetus | Lost 5 allies 19383 | -5/Cetus | Started Cetus Manufacturing Module 19408 | -5/Cetus | Manufactured an Enhanced Grunt 19419 | -5/Cetus | Escorted A7 to Cetus Mainframe 19433 | -5/Cetus | Manufactured an Enhanced Grunt 19458 | -5/Cetus | Manufactured an Enhanced Grunt 19483 | -5/Cetus | Manufactured an Enhanced Grunt 19508 | -5/Cetus | Manufactured an Enhanced Grunt 19546 | -5/Cetus | Discovered new exit (range 15) 19568 | -5/Cetus | Identified exit to Archives 19622 | -5/Cetus | Spotted Cetus Guard 19623 | -5/Cetus | Spotted Cetus Guard 19625 | -5/Cetus | Spotted Cetus Guard 19626 | -5/Cetus | Spotted Cetus Guard 19628 | -5/Cetus | Destroyed Cetus Guard 19635 | -5/Cetus | Allies destroyed Cetus Guard 19637 | -5/Cetus | Destroyed Cetus Guard 19645 | -5/Cetus | Allies destroyed Cetus Guard 19654 | -5/Cetus | Discovered exit to Factory (range 16) 19662 | -5/Cetus | Met Revision 17 19672 | -5/Cetus | Lost 4 allies 19831 | -5/Cetus | Entered Archives 19831 | -5/Archives | Accompanied by 16 allies (A7) 19836 | -5/Archives | Received a hacking code to weaken MAIN.C 19890 | -5/Archives | Discovered new exit (range 16) 19916 | -5/Archives | Discovered new exit (range 14) 19945 | -5/Archives | Identified exit to Hub_04(d) 19973 | -5/Archives | Discovered exit to Factory (range 15) 20098 | -5/Archives | Entered Hub_04(d) 20098 | -5/Hub_04(d) | Accompanied by 13 allies 20098 | -5/Hub_04(d) | Discovered exit to Factory (range 11) 20221 | -5/Hub_04(d) | Spotted B-75 Beast 20227 | -5/Hub_04(d) | Garrison activated, responded to threat 20261 | -5/Hub_04(d) | Entered Factory 20261 | -4/Factory | Accompanied by 1 ally 20261 | -4/Factory | Evolved 2 slots: Utility x2 20270 | -4/Factory | Lost 4 allies 20515 | -4/Factory | Build established: Scavenger-Tank 21102 | -4/Factory | Discovered new exit (range 11) 21155 | -4/Factory | Identified exit to Upper Caves 21279 | -4/Factory | Entered Upper Caves 21281 | -4/Upper Caves | Attracted the attention of an 0b10 checkpoint 21364 | -4/Upper Caves | Learned Research trap positions 21570 | -4/Upper Caves | Spotted B-86 Titan 21728 | -4/Upper Caves | Learned location of Testing (-2) 21736 | -4/Upper Caves | Learned Research trap positions 22321 | -4/Upper Caves | Discovered new exit (range 5) 22331 | -4/Upper Caves | Identified exit to Upper Caves 22544 | -4/Upper Caves | Found DCF Scrap (12 items) 22902 | -4/Upper Caves | Entered another Upper Caves area 22931 | -4/Upper Caves | Discovered new exit (range 18) 22956 | -4/Upper Caves | Identified exit to Research 23126 | -4/Upper Caves | Learned location of Armory (-3) 23548 | -4/Upper Caves | Learned Research non-interactive machine intel 23855 | -4/Upper Caves | Discovered new exit (range 9) 23869 | -4/Upper Caves | Identified exit to Warlord 24020 | -4/Upper Caves | Entered Warlord 24067 | -4/Warlord | Discovered new exit (range 8) 24076 | -4/Warlord | Identified exit to Proximity Caves 24179 | -4/Warlord | Received a Watcher feed algorithm from an ecstatic Tinkerer 24241 | -4/Warlord | Met Warlord 24266 | -4/Warlord | Warlord's base attacked by MAIN.C 24616 | -4/Warlord | Warlord forces counterattacked 24885 | -4/Warlord | Opened Warlord's prototype stash 24889 | -4/Warlord | Found Prototype Reactor 24889 | -4/Warlord | Identified Vortex Chain Reactor 24912 | -4/Warlord | Found Prototype Device 24912 | -4/Warlord | Identified System Purifier 24915 | -4/Warlord | Found Prototype Processor 24915 | -4/Warlord | Identified Exp. Target Analyzer 24924 | -4/Warlord | Found Exp. Targeting Computer 24941 | -4/Warlord | Warlord base infiltrated, sounded retreat 25092 | -4/Warlord | Spotted Executioner 25109 | -4/Warlord | Spotted Executioner 25113 | -4/Warlord | Spotted Executioner 25140 | -4/Warlord | Found Prototype Processor 25140 | -4/Warlord | Identified Exp. Core Analyzer 25143 | -4/Warlord | Lost 8 allies 25150 | -4/Warlord | Crushed by falling debris 25185 | -4/Warlord | Build established: Scavenger-Gunner 25196 | -4/Warlord | Entered Proximity Caves 25196 | -3/Proximity Caves | Accompanied by 1 ally 25203 | -3/Proximity Caves | Activated DRS Beacon 25216 | -3/Proximity Caves | Lost 7 allies 25966 | -3/Proximity Caves | Discovered exit to Research (range 5) 26110 | -3/Proximity Caves | Entered Research 26110 | -3/Research | Accompanied by 1 ally 26110 | -3/Research | Evolved 2 slots: Utility x2 26111 | -3/Research | Identified exit to Quarantine 26112 | -3/Research | Loaded intel: 63 trap records 26113 | -3/Research | Loaded intel: 69 non-interactive machine locations 26310 | -3/Research | Revision forces began assault on 0b10 26420 | -3/Research | Build established: Scavenger-Tank 26810 | -3/Research | Research terminal network offline 27042 | -3/Research | Discovered new exit (range 15) 27081 | -3/Research | Identified exit to Research 27493 | -3/Research | Entered another Research area 27493 | -2/Research | Warlord forces began assault on 0b10 27493 | -2/Research | Evolved 2 slots: Utility x2 27494 | -2/Research | Loaded intel: 60 trap records 27576 | -2/Research | Met up with Warlord 27603 | -2/Research | Research machine network offline 27718 | -2/Research | Took control of God Mode 27718 | -2/Research | Attacked by Warlord forces 27719 | -2/Research | Attacked by Warlord 27721 | -2/Research | Spotted TN-4AF(K) 27721 | -2/Research | Spotted U0-KJM(K) 27729 | -2/Research | Destroyed TN-4AF(K) 27733 | -2/Research | Allies destroyed U0-KJM(K) 27741 | -2/Research | Allies destroyed Warlord 27743 | -2/Research | Warlord destroyed during the assault 27746 | -2/Research | Borebot progress halted 27748 | -2/Research | Spotted 3H-V7W(L) 27752 | -2/Research | Destroyed 3H-V7W(L) 27761 | -2/Research | Spotted XR-HZK(L) 27776 | -2/Research | Destroyed XR-HZK(L) 27815 | -2/Research | Lost 4 allies 27845 | -2/Research | Destroyed 7 combat bots 27866 | -2/Research | Discovered new exit (range 12) 27903 | -2/Research | Borebot progress halted 27935 | -2/Research | Borebot progress halted 27940 | -2/Research | Identified exit to Testing 27953 | -2/Research | Entered Testing 27953 | -2/Testing | Accompanied by 1 ally (God Mode) 27975 | -2/Testing | Found Prototype Energy Cannon 27975 | -2/Testing | Identified Cld. Nova Cannon 28096 | -2/Testing | Found Prototype Ballistic Cannon 28096 | -2/Testing | Identified Perforator 28262 | -2/Testing | Spotted Striker 28432 | -2/Testing | Found Prototype Energy Gun 28432 | -2/Testing | Identified Warp Gun 28500 | -2/Testing | Scanned by Researcher 28703 | -2/Testing | First assault squad dispatched 28762 | -2/Testing | Incoming investigation squad redirected 28817 | -2/Testing | Found Prototype Energy Gun 28817 | -2/Testing | Identified Hyp. EM Gauss Rifle 28847 | -2/Testing | Found Prototype Device 28847 | -2/Testing | Identified Exp. Hardlight Generator 28876 | -2/Testing | Found Prototype Energy Cannon 28876 | -2/Testing | Identified Potential Cannon 28977 | -2/Testing | Incoming assault squad redirected 29119 | -2/Testing | Found Prototype Device 29119 | -2/Testing | Identified Exp. Sensor Array 29213 | -2/Testing | Found Prototype Device 29213 | -2/Testing | Identified Exp. Actuator Array 29470 | -2/Testing | Incoming assault squad redirected 29473 | -2/Testing | Incoming assault squad redirected 29623 | -2/Testing | Discovered new exit (range 15) 29729 | -2/Testing | Identified exit to Access 29979 | -2/Testing | Incoming assault squad redirected 30288 | -2/Testing | Lost 3 parts (1u2w) 30349 | -2/Testing | Entered Access 30349 | -1/Access | Evolved 2 slots: Power x1, Propulsion x1 30582 | -1/Access | Destroyed 10 combat bots 30849 | -1/Access | First assault squad dispatched 30876 | -1/Access | Incoming assault squad redirected 31016 | -1/Access | Lost 3 parts (3u) 31121 | -1/Access | Incoming assault squad redirected 31184 | -1/Access | Destroyed 15 combat bots 31278 | -1/Access | Lost 5 parts (2p2u1w) 31367 | -1/Access | System corruption reached 10% 31373 | -1/Access | Incoming assault squad redirected 31385 | -1/Access | Garrison activated, responded to threat 31390 | -1/Access | Lost 5 parts (1p1u3w) 31430 | -1/Access | Incoming assault squad redirected 31440 | -1/Access | Destroyed 11 combat bots 31458 | -1/Access | Lost 8 parts (1p3n1u3w) 31463 | -1/Access | Discovered new exit (range 6) 31465 | -1/Access | Identified exit to Surface 31466 | *** | Escaped! Last Messages --------------- 31441_ W-44 Eye distress signal jammed. 31441_ I-47 Archangel distress signal jammed. 31442_ Penetrated by Slug. 31442_ I-47 Archangel distress signal jammed. 31443_ U-05 Engineer lays Concrete. 31453_ ALERT: Potential suspicious activity detected, Programmers report to Access Zone 3Z. 31453_ Connecting with Terminal... 31455_ Hacking Drone released from Hacking Drone Bay. 31455_ Hacking Drone attempts to hack Terminal... >>Open(Door) Sealed Barrier opened. 31456_ Hacking Drone retrieved by Hacking Drone Bay (no repairs). 31463_ The Access Shell folds into the floor. 31463_ EXIT=FOUND 31465_ EXIT=IDENTIFIED: SURFACE Map ----- +----------------------------------------------------+ | #*! "" #????????????????????????? | | ##### ###[| """""" ??????????????????????????? | | ????# # #! # """""??????????????????????????????? | | ????# ## # "" ?????????????????????????? | | ????# # # # "" #????????????????????????? | | #####/# ! #????????????????????????? | | # = #????????????????????????? | | ##%! #????????????????????????? | | "" ##!%# #????????????????????????? | | "" ## *##############????????????????????????? | | "" # *%!###########################+#####????? | | "" / [=[! #?? | | "" # [%!%= g #?? | | "" # "!!######### ""###### #????????? | | ## %##???????# ""#?????????????????? | | ## ##???????# ""#?????????????????? | | ## ##???????# T#?????????????????? | | ## %#????????# ""#?????????????????? | | ######### #????????# ""#?????????????????? | | ????????# #???????## ""##????????????????? | | ????????# #???????# #????????????????? | | ????????# #???????## ##????????????????? | | ????????# #????????# #?????????????????? | | ????????# #????????# #?????????????????? | | ????????+ #????????# #?????????????????? | | ????????# #????????# @" #?????????????????? | | ????????# #????????# "" #?????????????????? | | ????????# #????????# #?????????????????? | | ???????? ????????# #?????????????????? | | ???????? ????????# #?????????????????? | | ???????? ????????#""""""""""#?????????????????? | | ???????? ?????????????????????????????????????? | | ????????####?????????????????????????????????????? | | ?????????????????????????????????????????????????? | | ?????????????????????????????????????????????????? | | ?????????????????????????????????????????????????? | | ?????????????????????????????????????????????????? | | ?????????????????????????????????????????????????? | | ?????????????????????????????????????????????????? | | ?????????????????????????????????????????????????? | | ?????????????????????????????????????????????????? | | ?????????????????????????????????????????????????? | | ?????????????????????????????????????????????????? | | ?????????????????????????????????????????????????? | | ?????????????????????????????????????????????????? | | ?????????????????????????????????????????????????? | | ?????????????????????????????????????????????????? | | ?????????????????????????????????????????????????? | | ?????????????????????????????????????????????????? | | ?????????????????????????????????????????????????? | +----------------------------------------------------+ Best States ------------- Heat Dissipation 97 Energy Generation 65 Energy Capacity 830 Matter Stores 300 Matter Capacity 300 Sight Range 20 Robot Scan Range 16 Terrain Scan Range 16 Terrain Scan Density 10 Jamming Range 14 Corruption Block 20 Armor Coverage 1500 Resistance: TH 30 Phase Shifting 15 Evasion (%) 55 Targeting Accuracy 12 Target Analysis 12 Core Analysis 8 Recoil Reduction 6 Kinecelleration 40 Defensive Hacking 10 Item Schematics ----------------- Imp. Shield Generator | -7/Zion | Archive Stasis Canceller | -7/Zion | Archive Imp. Salvage Targeting Computer | -7/Zion | Archive Adv. Melee Analysis Suite | -7/Zion | Archive Lrn. Proton Cannon | -7/Zion | Archive Transmission Jammer | -7/Zion | Archive Fission Core | -7/Zion | Archive Gravmag System | -7/Zion | Archive Energy Well | -7/Zion | Archive Greatsword | -7/Zion | Archive Thermal Shield | -7/Zion | Archive Adv. Assault Cannon | -7/Zion | Archive Imp. Weapon Cycler | -7/Zion | Archive Slug Cannon | -7/Zion | Free Bore Cannon | -7/Zion | Free Combat Drone Bay | -6/Data Miner | Free Lgt. Regenerative Plating | -6/Data Miner | Free Enh. Armored Leg | -6/Data Miner | Free Exp. Heat Sink | -6/Data Miner | Free Mni. Smartbomb Launcher | -6/Data Miner | Free Shield Leg | -6/Data Miner | Free Lrn. Sensor Array | -6/Data Miner | Free Phase Gun | -6/Data Miner | Free Wave Gun | -6/Data Miner | Free Adv. Cryofiber Web | -6/Data Miner | Free Imp. Gyrokinetic Inverter | -6/Data Miner | Free Linear Accelerator | -6/Data Miner | Free Exp. Reaction Control System | -2/Testing | Archive Lgt. Antimatter Cannon | -2/Testing | Archive Kinetic Spear | -2/Testing | Archive Robot Schematics ------------------ W-25 Informer | -7/Zion | Archive G-73 Enforcer | -7/Zion | Archive B-48 Gladiator | -7/Zion | Archive T-07 Excavator | -7/Zion | Archive Y-54 Guardian | -6/Data Miner | Free A-15 Conveyor | -6/Data Miner | Free G-50 Soldier | -6/Data Miner | Free Fabricated ------------ Adv. Plasma Rifle | x1 | -7/Factory | Preloaded Repaired ---------- Grenade Launcher | 30% | -10/Materials Arm. Treads | 74% | -7/Factory | Broken Studied --------- Autogun | -8/Materials | Hacked Railgun | -2/Testing | Hacked Alien Tech Used ----------------- Core Expander Achievements -------------- Godhack Challenges ------------ None Game ------ Seed TeslaIonicLattice Manual? 0 Play Time 03:27:21 Cumulative 277.6 hours Start 2026.01.01 @ 15:25:49 End 2026.01.01 @ 19:20:13 Sessions 1 Manual Loads 0 Difficulty Rogue Special Mode None Game No. 181 Rogue 181 Adventurer 0 Explorer 0 Win Type 0 Total 10 Types 7/0/1/1/0/0/0/1/0/0 Lore% 91 Gallery% 80 Achievement% 64 Wizard Run 0 Options --------- Layout 1 ASCII 0 Keyboard 0 Movement Mouse Keybinds 0 Fullscreen 2 Font 32/SmallcapsGlow Map View 50x35 Zoom Use 0% Tactical HUD 1 Map Filters NONE Filters NONE Steam 1 RUN: 2d7206af-af90-4626-a53d-994047a99963